fUST/lending_fUST_20240831
["ID","MTS","AMOUNT","RATE_DAILY","PERIOD"]
[336718228,1725065451711,-151.0,0.00032876,7]
[336718229,1725065451721,-500.0,0.00032876,31]
[336718230,1725065451731,-151.0,0.00032876,7]
[336718231,1725065451742,-151.0,0.00032876,7]
[336718232,1725065451753,-500.0,0.00032876,31]
[336718233,1725065451763,-1236.35,0.00032876,31]
[336718234,1725065451773,-1236.35,0.00032876,31]
[336718235,1725065451783,-1236.35,0.00032876,31]
[336718236,1725065451792,-1236.35,0.00032876,31]
[336718237,1725065451802,-1236.35,0.00032876,31]
[336718238,1725065451813,-1236.35,0.00032876,31]
[336718239,1725065451822,-500.0,0.00032876,31]
[336718240,1725065451832,-1236.35,0.00032876,31]
[336718241,1725065451842,-1236.35,0.00032876,31]
[336718242,1725065451852,-1236.35,0.00032876,31]
[336718243,1725065451862,-1236.35,0.00032876,31]
[336718244,1725065451872,-1236.35,0.00032876,31]
[336718245,1725065451881,-1236.35,0.00032876,31]
[336718246,1725065451891,-1236.35,0.00032876,31]
[336718247,1725065451901,-1236.35,0.00032876,31]
[336718248,1725065451911,-500.0,0.00032876,31]
[336718249,1725065451921,-1004.83049547,0.00032876,31]
[336718250,1725065462756,351.28270853,0.000249,2]
[336718256,1725065634133,166.003952,0.00014247,2]
[336718279,1725066355126,-170.147949,0.0001863,2]
[336718281,1725066355347,-10.04382797,0.00025,2]
[336718285,1725066436107,-258.82617203,0.00025,2]
[336718286,1725066436131,-166.003952,0.00025405,2]
[336718287,1725066436155,-300.0,0.00025542,2]
[336718288,1725066436179,-300.0,0.00025542,2]
[336718289,1725066436203,-13891.7501006,0.00025543,2]
[336718290,1725066436226,-251.840766,0.00025601,2]
[336718291,1725066436255,-24890.0,0.00026513,2]
[336718292,1725066436278,-3155.80356593,0.00026926,2]
[336718293,1725066436301,-954.9514291,0.00026926,2]
[336718294,1725066436324,-235.6,0.00029005,5]
[336718295,1725066436348,-1683.50220703,0.00029029,2]
[336718296,1725066436370,-235.6,0.00029829,6]
[336718297,1725066436393,-151.0,0.0003,120]
[336718298,1725066436415,-235.6,0.00030653,6]
[336718299,1725066436438,-235.6,0.00031477,7]
[336718300,1725066436461,-151.0,0.00031753,120]
[336718301,1725066436484,-11719.1054906,0.00032,5]
[336718302,1725066436508,-2000.0,0.00032,30]
[336718303,1725066436530,-235.6,0.00032301,7]
[336718304,1725066436551,-192.20465325,0.00032545,2]
[336718305,1725066436572,-934.79105434,0.00032545,2]
[336718306,1725066436594,-174.80921894,0.00032689,2]
[336718307,1725066436617,-174.80921894,0.00032733,2]
[336718308,1725066436639,-2000.0,0.00032746,2]
[336718309,1725066436662,-888.3,0.00032746,3]
[336718310,1725066436686,-47875.50248647,0.00032756,5]
[336718311,1725066436709,-47364.3931313,0.00032756,4]
[336718312,1725066436731,-10036.59888469,0.00032776,120]
[336718313,1725066436758,-174.80921894,0.00032776,2]
[336718314,1725066436781,-150.0,0.000328,13]
[336718315,1725066436805,-398.37135651,0.00032845,2]
[336718316,1725066436828,-23188.29133233,0.00032846,4]
[336718317,1725066447111,-500.0,0.00023652,2]
[336718318,1725066447136,-69982.75961634,0.00032846,4]
[336718319,1725066451336,-500.0,0.00027932,2]
[336718320,1725066451359,-500.0,0.00031902,7]
[336718321,1725066451380,-549.76505104,0.00032612,7]
[336718322,1725066451403,-143650.91470733,0.00032846,4]
[336718323,1725066451426,-1799.39819754,0.00032875,2]
[336718324,1725066451450,-500.51560333,0.00032876,2]
[336718325,1725066451470,-500.0,0.00032876,31]
[336718326,1725066451492,-500.0,0.00032876,31]
[336718327,1725066451513,-506.48357969,0.00032876,31]
[336718328,1725066451534,-500.0,0.00032876,31]
[336718329,1725066451555,-500.0,0.00032876,31]
[336718330,1725066451576,-500.0,0.00032876,31]
[336718331,1725066451598,-500.0,0.00032876,31]
[336718332,1725066451621,-500.0,0.00032876,31]
[336718333,1725066451643,-151.0,0.00032876,7]
[336718334,1725066451664,-151.0,0.00032876,7]
[336718335,1725066451686,-199.661289,0.00032876,7]
[336718336,1725066451714,-500.0,0.00032876,31]
[336718337,1725066451737,-163.79110381,0.00032876,31]
[336718338,1725066451759,-500.0,0.00032876,31]
[336718339,1725066451780,-500.0,0.00032876,31]
[336718340,1725066451800,-624.26,0.00032876,31]
[336718341,1725066451822,-500.0,0.00032876,31]
[336718342,1725066451845,-500.0,0.00032876,31]
[336718343,1725066451867,-500.0,0.00032876,31]
[336718344,1725066451887,-500.0,0.00032876,31]
[336718345,1725066451910,-500.0,0.00032876,31]
[336718346,1725066451931,-500.0,0.00032876,31]
[336718347,1725066451954,-500.0,0.00032876,31]
[336718348,1725066451976,-500.0,0.00032876,31]
[336718349,1725066451998,-593.65184786,0.00032876,31]
[336718350,1725066452020,-500.0,0.00032876,31]
[336718351,1725066452040,-500.0,0.00032876,31]
[336718352,1725066452061,-500.0,0.00032876,31]
[336718353,1725066452081,-500.0,0.00032876,31]
[336718354,1725066452101,-500.0,0.00032876,31]
[336718355,1725066452122,-500.0,0.00032876,31]
[336718356,1725066452142,-500.0,0.00032876,31]
[336718357,1725066452162,-500.41478892,0.00032876,31]
[336718358,1725066452182,-500.0,0.00032876,31]
[336718359,1725066452202,-395.03801319,0.00032876,31]
[336718360,1725066452222,-500.0,0.00032876,31]
[336718361,1725066452242,-500.0,0.00032876,31]
[336718362,1725066452264,-500.0,0.00032876,31]
[336718363,1725066452284,-500.0,0.00032876,31]
[336718364,1725066452304,-500.0,0.00032876,31]
[336718365,1725066452325,-500.0,0.00032876,31]
[336718366,1725066452348,-172.02999007,0.00032876,31]
[336718367,1725066452368,-500.80277027,0.00032876,31]
[336718368,1725066452390,-500.0,0.00032876,31]
[336718369,1725066452412,-500.0,0.00032876,31]
[336718370,1725066452433,-500.0,0.00032876,31]
[336718371,1725066452455,-500.0,0.00032876,31]
[336718372,1725066452475,-500.0,0.00032876,31]
[336718373,1725066452496,-500.0,0.00032876,31]
[336718374,1725066452518,-500.0,0.00032876,10]
[336718375,1725066452539,-500.0,0.00032876,31]
[336718376,1725066452559,-500.0,0.00032876,31]
[336718377,1725066452580,-540.12641338,0.00032876,31]
[336718378,1725066452601,-500.0,0.00032876,31]
[336718379,1725066452621,-500.0,0.00032876,31]
[336718380,1725066452642,-500.0,0.00032876,31]
[336718381,1725066452662,-500.0,0.00032876,31]
[336718382,1725066452687,-500.0,0.00032876,31]
[336718383,1725066452711,-386.53975517,0.00032876,31]
[336718384,1725066452732,-345.1294237,0.00032876,31]
[336718385,1725066452753,-500.0,0.00032876,31]
[336718386,1725066452775,-500.0,0.00032876,31]
[336718387,1725066452796,-500.0,0.00032876,31]
[336718388,1725066452817,-500.0,0.00032876,31]
[336718389,1725066452838,-500.0,0.00032876,31]
[336718390,1725066452859,-567.82166052,0.00032876,31]
[336718391,1725066452879,-500.0,0.00032876,31]
[336718392,1725066452900,-500.0,0.00032876,31]
[336718393,1725066452920,-824.97,0.00032876,31]
[336718394,1725066452941,-500.0,0.00032876,31]
[336718395,1725066452961,-500.0,0.00032876,31]
[336718396,1725066452981,-500.0,0.00032876,31]
[336718397,1725066453001,-500.0,0.00032876,31]
[336718398,1725066453023,-500.0,0.00032876,31]
[336718399,1725066453044,-500.0,0.00032876,31]
[336718400,1725066453065,-500.0,0.00032876,31]
[336718401,1725066453085,-500.0,0.00032876,31]
[336718402,1725066453105,-500.0,0.00032876,31]
[336718403,1725066453127,-500.0,0.00032876,31]
[336718404,1725066453148,-500.0,0.00032876,31]
[336718405,1725066453169,-500.0,0.00032876,31]
[336718406,1725066453189,-500.0,0.00032876,31]
[336718407,1725066453211,-426.45908312,0.00032876,31]
[336718408,1725066453231,-500.0,0.00032876,31]
[336718409,1725066453254,-500.0,0.00032876,31]
[336718410,1725066453276,-361.15817102,0.00032876,31]
[336718411,1725066453298,-151.0,0.00032876,7]
[336718412,1725066453320,-151.0,0.00032876,7]
[336718413,1725066453342,-151.0,0.00032876,7]
[336718414,1725066453364,-178.717121,0.00032876,7]
[336718415,1725066453385,-594.58425863,0.00032876,31]
[336718416,1725066453406,-500.0,0.00032876,31]
[336718417,1725066453427,-500.0,0.00032876,31]
[336718418,1725066453448,-500.0,0.00032876,31]
[336718419,1725066453469,-500.0,0.00032876,31]
[336718420,1725066453490,-500.0,0.00032876,31]
[336718421,1725066453512,-500.0,0.00032876,31]
[336718422,1725066453533,-500.0,0.00032876,31]
[336718423,1725066453554,-500.0,0.00032876,31]
[336718424,1725066453575,-500.0,0.00032876,31]
[336718425,1725066453596,-500.0,0.00032876,31]
[336718426,1725066453617,-500.0,0.00032876,31]
[336718427,1725066453638,-500.0,0.00032876,31]
[336718428,1725066453659,-500.0,0.00032876,31]
[336718429,1725066453683,-500.0,0.00032876,31]
[336718430,1725066453705,-245.04107141,0.00032876,31]
[336718431,1725066453726,-500.0,0.00032876,31]
[336718432,1725066453748,-500.0,0.00032876,31]
[336718433,1725066453779,-500.0,0.00032876,31]
[336718434,1725066453966,-151.0,0.00032876,7]
[336718435,1725066453991,-151.0,0.00032876,7]
[336718436,1725066454017,-151.0,0.00032876,7]
[336718437,1725066454039,-151.0,0.00032876,7]
[336718438,1725066454060,-151.0,0.00032876,7]
[336718439,1725066454082,-151.0,0.00032876,7]
[336718440,1725066454103,-500.0,0.00032876,31]
[336718441,1725066454125,-500.0,0.00032876,31]
[336718442,1725066454146,-500.0,0.00032876,31]
[336718443,1725066454170,-755.35,0.00032876,31]
[336718444,1725066454193,-559.59513134,0.00032876,31]
[336718445,1725066454215,-500.0,0.00032876,31]
[336718446,1725066454236,-500.0,0.00032876,31]
[336718447,1725066454259,-500.0,0.00032876,31]
[336718448,1725066454280,-500.0,0.00032876,31]
[336718449,1725066454301,-500.0,0.00032876,31]
[336718450,1725066454323,-500.0,0.00032876,31]
[336718451,1725066454346,-500.0,0.00032876,31]
[336718452,1725066454368,-500.0,0.00032876,31]
[336718453,1725066454390,-500.0,0.00032876,31]
[336718454,1725066454412,-350.5242742,0.00032876,31]
[336718455,1725066454434,-500.58703518,0.00032876,31]
[336718456,1725066454456,-500.0,0.00032876,31]
[336718457,1725066454477,-151.0,0.00032876,7]
[336718458,1725066454500,-151.0,0.00032876,7]
[336718459,1725066454521,-158.806732,0.00032876,7]
[336718460,1725066454543,-500.0,0.00032876,31]
[336718461,1725066454564,-500.0,0.00032876,60]
[336718462,1725066454585,-500.0,0.00032876,31]
[336718463,1725066454608,-500.0,0.00032876,31]
[336718464,1725066454632,-500.0,0.00032876,31]
[336718465,1725066454655,-500.66493253,0.00032876,31]
[336718466,1725066454677,-500.0,0.00032876,31]
[336718467,1725066454700,-151.0,0.00032876,7]
[336718468,1725066454720,-480.06525616,0.00032876,31]
[336718469,1725066454741,-500.0,0.00032876,31]
[336718470,1725066454762,-500.0,0.00032876,31]
[336718471,1725066454785,-151.0,0.00032876,7]
[336718472,1725066454806,-151.0,0.00032876,7]
[336718473,1725066454828,-500.0,0.00032876,31]
[336718474,1725066454849,-500.0,0.00032876,31]
[336718475,1725066454870,-500.0,0.00032876,31]
[336718476,1725066454891,-1000.0,0.00032876,31]
[336718477,1725066454911,-473.34690368,0.00032876,31]
[336718478,1725066454932,-500.0,0.00032876,31]
[336718479,1725066454953,-500.0,0.00032876,31]
[336718480,1725066454975,-500.0,0.00032876,31]
[336718481,1725066455000,-500.0,0.00032876,31]
[336718482,1725066455023,-500.0,0.00032876,31]
[336718483,1725066455044,-541.08738454,0.00032876,31]
[336718484,1725066455065,-151.0,0.00032876,7]
[336718485,1725066455086,-500.0,0.00032876,31]
[336718486,1725066455107,-151.0,0.00032876,7]
[336718487,1725066455130,-151.0,0.00032876,7]
[336718488,1725066455151,-552.58567458,0.00032876,31]
[336718489,1725066455172,-500.0,0.00032876,31]
[336718490,1725066455194,-151.0,0.00032876,7]
[336718491,1725066455215,-151.0,0.00032876,7]
[336718492,1725066455236,-151.0,0.00032876,7]
[336718493,1725066455258,-500.0,0.00032876,31]
[336718494,1725066455279,-500.0,0.00032876,31]
[336718495,1725066455300,-538.93126061,0.00032876,31]
[336718496,1725066455322,-395.085315,0.00032876,7]
[336718497,1725066455343,-395.085315,0.00032876,7]
[336718498,1725066455364,-395.085315,0.00032876,7]
[336718499,1725066455386,-500.0,0.00032876,31]
[336718500,1725066455407,-395.085315,0.00032876,7]
[336718501,1725066455428,-395.085315,0.00032876,7]
[336718502,1725066455449,-151.0,0.00032876,7]
[336718503,1725066455470,-395.085315,0.00032876,7]
[336718504,1725066455491,-151.0,0.00032876,7]
[336718505,1725066455513,-208.917585,0.00032876,7]
[336718506,1725066455534,-500.0,0.00032876,31]
[336718507,1725066455555,-395.085315,0.00032876,7]
[336718508,1725066455577,-395.085315,0.00032876,7]
[336718509,1725066455598,-531.56240457,0.00032876,31]
[336718510,1725066455620,-395.085315,0.00032876,7]
[336718511,1725066455641,-395.085315,0.00032876,7]
[336718512,1725066455663,-395.085315,0.00032876,7]
[336718513,1725066455688,-395.085315,0.00032876,7]
[336718514,1725066455709,-151.0,0.00032876,7]
[336718515,1725066455729,-151.0,0.00032876,7]
[336718516,1725066455751,-172.006394,0.00032876,7]
[336718517,1725066455771,-500.0,0.00032876,31]
[336718518,1725066455793,-500.0,0.00032876,31]
[336718519,1725066455814,-500.0,0.00032876,31]
[336718520,1725066455835,-500.0,0.00032876,31]
[336718521,1725066455855,-500.0,0.00032876,31]
[336718522,1725066455876,-500.0,0.00032876,31]
[336718523,1725066455899,-500.0,0.00032876,31]
[336718524,1725066455920,-500.0,0.00032876,31]
[336718525,1725066455941,-516.32103639,0.00032876,31]
[336718526,1725066455961,-500.0,0.00032876,31]
[336718527,1725066455980,-631.52985006,0.00032876,31]
[336718528,1725066456001,-500.0,0.00032876,31]
[336718529,1725066456021,-500.0,0.00032876,31]
[336718530,1725066456041,-151.0,0.00032876,7]
[336718531,1725066456060,-500.0,0.00032876,31]
[336718532,1725066456080,-500.0,0.00032876,31]
[336718533,1725066456100,-503.37008425,0.00032876,31]
[336718534,1725066456121,-500.0,0.00032876,31]
[336718535,1725066456140,-500.0,0.00032876,31]
[336718536,1725066456160,-500.0,0.00032876,31]
[336718537,1725066456180,-500.0,0.00032876,31]
[336718538,1725066456200,-500.0,0.00032876,31]
[336718539,1725066456221,-500.0,0.00032876,31]
[336718540,1725066456242,-237.717934,0.00032876,7]
[336718541,1725066456264,-237.717934,0.00032876,7]
[336718542,1725066456284,-500.0,0.00032876,31]
[336718543,1725066456306,-237.717934,0.00032876,7]
[336718544,1725066456327,-237.717934,0.00032876,7]
[336718545,1725066456349,-237.717934,0.00032876,7]
[336718546,1725066456370,-500.0,0.00032876,31]
[336718547,1725066456390,-262.0556444,0.00032876,31]
[336718548,1725066456410,-237.717934,0.00032876,7]
[336718549,1725066456431,-237.717934,0.00032876,7]
[336718550,1725066456451,-237.717934,0.00032876,7]
[336718551,1725066456473,-237.717934,0.00032876,7]
[336718552,1725066456494,-237.717934,0.00032876,7]
[336718553,1725066456519,-500.0,0.00032876,31]
[336718554,1725066456541,-500.0,0.00032876,31]
[336718555,1725066456563,-500.0,0.00032876,31]
[336718556,1725066456584,-500.0,0.00032876,31]
[336718557,1725066456606,-500.0,0.00032876,31]
[336718558,1725066456627,-500.0,0.00032876,31]
[336718559,1725066456648,-500.0,0.00032876,31]
[336718560,1725066456669,-500.0,0.00032876,31]
[336718561,1725066456692,-500.0,0.00032876,31]
[336718562,1725066456713,-500.0,0.00032876,2]
[336718563,1725066456738,-151.0,0.00032876,7]
[336718564,1725066456760,-151.0,0.00032876,7]
[336718565,1725066456783,-500.0,0.00032876,31]
[336718566,1725066456804,-500.0,0.00032876,31]
[336718567,1725066456824,-411.67279813,0.00032876,31]
[336718568,1725066456844,-500.0,0.00032876,31]
[336718569,1725066456865,-500.0,0.00032876,7]
[336718570,1725066456885,-500.0,0.00032876,31]
[336718571,1725066456906,-500.0,0.00032876,31]
[336718572,1725066456927,-194.94173696,0.00032876,31]
[336718576,1725066553123,-500.0,0.0002634,2]
[336718605,1725066631951,-500.0,0.00029781,2]
[336718608,1725066631963,-174.80921895,0.00032775,2]
[336718610,1725066631973,-7156.6085162,0.00032776,120]
[336718627,1725066632287,-21622.740471,0.00032776,120]
[336718628,1725066632307,-4332.8829248,0.00032776,120]
[336718629,1725066632317,-1473.06443116,0.00032776,2]
[336718630,1725066632329,-611.33437601,0.00032781,5]
[336718631,1725066632340,-8582.85233237,0.00032866,4]
[336718634,1725066638140,-25774.82618328,0.00032866,4]
[336718635,1725066638386,-18.93996664,0.00032866,4]
[336718639,1725066640437,-28399.2198833,0.00032866,4]
[336718644,1725066643195,-42798.46177387,0.00032866,4]
[336718660,1725066646011,-17374.87520924,0.00032866,4]
[336718661,1725066646072,-49363.50157299,0.00032866,4]
[336718662,1725066659428,168.785545,0.0001863,2]
[336718664,1725066699427,162.45077,0.00014247,2]
[336718665,1725066699863,162.45077,0.00024475,2]
[336718682,1725067618125,-168.785545,0.0001863,2]
[336718683,1725067618149,-81.23624242,0.00024339,2]
[336718684,1725067637180,-418.76375758,0.00024339,2]
[336718685,1725067637204,-174.0,0.00027,2]
[336718686,1725067637225,-174.0,0.00028767,2]
[336718687,1725067637247,-249.5,0.00028956,5]
[336718688,1725067637268,-500.0,0.00029287,2]
[336718689,1725067637290,-249.5,0.00029784,6]
[336718690,1725067637314,-151.0,0.0003,120]
[336718691,1725067637336,-776.6617368,0.00030277,2]
[336718692,1725067637357,-249.5,0.00030613,6]
[336718693,1725067637377,-249.5,0.00031441,7]
[336718694,1725067637400,-250000.0,0.00032,10]
[336718695,1725067637423,-249.5,0.0003227,7]
[336718696,1725067637446,-500.0,0.00032482,7]
[336718697,1725067637467,-294.31526677,0.00032537,2]
[336718698,1725067637488,-191.0,0.00032684,30]
[336718699,1725067637513,-156.41,0.000327,31]
[336718700,1725067637535,-184.34099027,0.00032775,2]
[336718701,1725067637555,-184.34099027,0.00032775,2]
[336718702,1725067637576,-184.34099027,0.00032776,2]
[336718703,1725067637600,-184.34099027,0.00032776,2]
[336718704,1725067637623,-2000.0,0.00032776,2]
[336718705,1725067637653,-9123.81348151,0.00032776,120]
[336718706,1725067637675,-184.34099027,0.00032776,2]
[336718707,1725067637699,-3000.0,0.000328,13]
[336718708,1725067637721,-3000.0,0.0003281,13]
[336718709,1725067637746,-3000.0,0.0003282,13]
[336718710,1725067637767,-153.0,0.00032822,2]
[336718711,1725067637789,-153.0,0.00032822,2]
[336718712,1725067637812,-153.0,0.00032822,2]
[336718713,1725067637835,-5850.0,0.0003283,13]
[336718714,1725067637859,-4683.1284343,0.00032854,2]
[336718715,1725067637881,-54786.246563,0.00032866,4]
[336718716,1725067666211,162.392868,0.00014247,2]
[336718718,1725067747129,-500.0,0.00024049,2]
[336718719,1725067747151,-500.0,0.00025337,2]
[336718720,1725067747173,-162.392868,0.00025405,2]
[336718721,1725067747193,-500.0,0.00027587,2]
[336718722,1725067747215,-500.0,0.00029013,2]
[336718723,1725067761770,168.785545,0.0001863,2]
[336718726,1725067805523,1090.935609,0.00019084,2]
[336718730,1725067828710,2020.46267638,3.2e-05,2]
[336718765,1725067839086,-500.0,0.00029692,2]
[336718766,1725067839098,-158.0,0.0003,2]
[336718767,1725067839109,-158.0,0.00030411,2]
[336718768,1725067839120,-500.0,0.00030491,7]
[336718769,1725067839132,-210.9664535,0.00030605,2]
[336718770,1725067839144,-262.7236,0.00031141,30]
[336718771,1725067839156,-500.0,0.00031299,7]
[336718772,1725067839173,-35644.48152331,0.000315,10]
[336718774,1725067840575,-40635.31545503,0.000315,10]
[336718775,1725067840797,-28619.01345198,0.000315,10]
[336718780,1725067843617,-27.7801986,0.000315,10]
[336718783,1725067846387,-451.82049521,0.000315,10]
[336718784,1725067847108,671.9512,0.00029141,30]
[336718787,1725067866003,364.853,0.00017,2]
[336718789,1725067899192,151.0,0.00029342,5]
[336718790,1725067940604,500.0,0.00028993,2]
[336718791,1725067940942,500.67441869,0.00028431,2]
[336718792,1725067947807,500.0,0.00023886,2]
[336718799,1725068244061,159.243257,0.00014247,2]
[336718802,1725068379910,420.0,0.00023,60]
[336718809,1725068745152,-168.905236,0.0001863,2]
[336718810,1725068745180,-5132.024899,0.00019084,2]
[336718811,1725068745206,-143.75971894,0.00025271,2]
[336718812,1725068746104,-356.24028106,0.00025271,2]
[336718813,1725068746128,-395.57974114,0.00025313,2]
[336718815,1725068801100,-104.42025886,0.00025313,2]
[336718816,1725068801122,-84.7794124,0.00026203,15]
[336718818,1725068808744,162.392868,0.00014247,2]
[336718819,1725068825140,-115.2205876,0.00026203,15]
[336718820,1725068825162,-254.254729,0.00026274,2]
[336718821,1725068825183,-212.6936355,0.00026367,2]
[336718822,1725068825206,-225.915663,0.00026551,2]
[336718823,1725068825227,-2963.1123576,0.00026555,2]
[336718824,1725068825248,-225.915663,0.00026624,2]
[336718825,1725068825270,-225.915663,0.00026697,2]
[336718826,1725068825292,-225.915663,0.00026769,2]
[336718827,1725068825315,-225.915663,0.00026842,2]
[336718828,1725068825338,-225.915663,0.00026915,2]
[336718829,1725068825359,-515.39425024,0.0002697,2]
[336718830,1725068825381,-225.915663,0.00026988,2]
[336718831,1725068825420,-225.915663,0.00027061,2]
[336718832,1725068825444,-300.0,0.00027132,2]
[336718833,1725068825467,-225.915663,0.00027133,2]
[336718834,1725068825489,-300.0,0.00027205,2]
[336718835,1725068825513,-225.915663,0.00027206,2]
[336718836,1725068825535,-225.915663,0.00027279,2]
[336718837,1725068825558,-225.915663,0.00027352,2]
[336718838,1725068825581,-225.915663,0.00027425,2]
[336718839,1725068825603,-225.915663,0.00027498,2]
[336718840,1725068825626,-225.915663,0.0002757,2]
[336718841,1725068825650,-225.915663,0.00027643,2]
[336718842,1725068825684,-225.915663,0.00027716,2]
[336718843,1725068825708,-225.915663,0.00027789,2]
[336718844,1725068825730,-225.915663,0.00027862,2]
[336718845,1725068825753,-162.392868,0.00027884,2]
[336718846,1725068825774,-225.915663,0.00027934,2]
[336718847,1725068825797,-500.0,0.00028756,2]
[336718848,1725068825819,-420.0,0.00029406,2]
[336718849,1725068825841,-12.67993006,0.00029589,2]
[336718850,1725068849093,-501.93212804,0.00026665,2]
[336718851,1725068849116,-502.89340947,0.00029231,2]
[336718852,1725068849139,-146.56332694,0.00029589,2]
[336718853,1725068849166,-420.0,0.00029846,2]
[336718854,1725068849192,-24890.0,0.00029926,2]
[336718855,1725068849213,-158.0,0.0003,2]
[336718856,1725068849234,-151.0,0.00030011,6]
[336718857,1725068849255,-537.66473618,0.00030064,7]
[336718858,1725068849276,-163.6996684,0.00030506,2]
[336718859,1725068849297,-151.0,0.00030664,6]
[336718860,1725068849318,-151.0,0.00031317,7]
[336718861,1725068849340,-50439.58887587,0.000315,10]
[336718862,1725068849360,-158.0,0.00031644,2]
[336718863,1725068849381,-587.0,0.00031784,2]
[336718864,1725068849401,-151.0,0.00031971,7]
[336718865,1725068849424,-263.45625589,0.00032376,2]
[336718866,1725068849445,-151.0,0.00032624,7]
[336718867,1725068849467,-161.51,0.000327,31]
[336718868,1725068849488,-307.6915874,0.00032716,2]
[336718869,1725068849508,-416.8405478,0.00032716,2]
[336718870,1725068849528,-234.45379661,0.00032767,2]
[336718871,1725068849550,-234.45379658,0.00032769,2]
[336718872,1725068849572,-234.45379658,0.00032772,2]
[336718873,1725068849593,-234.45379658,0.00032774,2]
[336718874,1725068849613,-13000.0,0.00032775,31]
[336718875,1725068849634,-800.0,0.00032775,7]
[336718876,1725068849654,-800.0,0.00032775,14]
[336718877,1725068849677,-800.0,0.00032775,21]
[336718878,1725068849699,-1096.87360948,0.00032775,28]
[336718879,1725068849724,-4388.96339331,0.00032776,120]
[336718880,1725068849744,-201.09945533,0.00032776,5]
[336718881,1725068849767,-234.45379658,0.00032776,2]
[336718882,1725068849788,-160.645048,0.000328,13]
[336718883,1725068849810,-587.0,0.0003283,2]
[336718884,1725068849832,-556.706,0.00032854,2]
[336718885,1725068849858,-150.545,0.00032854,2]
[336718886,1725068849879,-354.81,0.00032856,3]
[336718887,1725068849901,-16025.11165982,0.00032866,4]
[336718888,1725068948196,-168.905236,0.0001863,2]
[336718889,1725068948217,-500.0,0.00024072,2]
[336718890,1725068948239,-510.35969846,0.00025432,2]
[336718935,1725069039280,-161.52,0.000327,31]
[336718936,1725069039290,-459.49599882,0.00032776,120]
[336718937,1725069039300,-400.0,0.00032802,2]
[336718938,1725069039309,-400.0,0.00032802,2]
[336718939,1725069039318,-150.0,0.00032803,14]
[336718940,1725069039328,-5411.612359,0.00032803,2]
[336718941,1725069039337,-295.68,0.00032803,14]
[336718942,1725069039347,-500.0,0.00032803,5]
[336718943,1725069039356,-500.0,0.00032803,5]
[336718944,1725069039366,-607.47935511,0.00032803,5]
[336718945,1725069039376,-200.07,0.00032856,3]
[336718946,1725069039386,-326.78,0.00032856,3]
[336718947,1725069039396,-272.32,0.00032856,3]
[336718948,1725069039405,-1071.0716606,0.00032865,5]
[336718949,1725069039415,-154242.07881368,0.00032866,4]
[336718950,1725069039695,-1141.562402,0.00032866,4]
[336718951,1725069039728,-36034.1913797,0.00032866,4]
[336718954,1725069040733,-92366.99968362,0.00032866,4]
[336718955,1725069040745,-192.5,0.00032867,120]
[336718956,1725069040757,-150.4907273,0.00032875,2]
[336718957,1725069040767,-4470.45542225,0.00032875,2]
[336718958,1725069040777,-500.0,0.00032875,2]
[336718959,1725069040791,-164.73106735,0.00032875,2]
[336718960,1725069040801,-753.08645322,0.00032876,5]
[336718961,1725069040813,-151.0,0.00032876,7]